fUSD/lending_fUSD_20250123
["ID","MTS","AMOUNT","RATE_DAILY","PERIOD"]
[350081249,1737601871762,-762.67,0.00021917,2]
[350081250,1737601871772,-2708.15,0.00021917,2]
[350081251,1737601871781,-600.78,0.00021917,2]
[350081252,1737601871790,-1482.92,0.00021917,2]
[350081253,1737601871800,-500.0,0.00021917,2]
[350081254,1737601871809,-645.45,0.00021917,2]
[350081255,1737601871819,-800.69,0.00021917,2]
[350081256,1737601871828,-1422.27,0.00021917,2]
[350081257,1737601871837,-975.87,0.00021917,2]
[350081258,1737601871847,-500.0,0.00021917,2]
[350081259,1737601871857,-1785.01,0.00021917,2]
[350081260,1737601871866,-301.33736009,0.00021917,2]
[350081261,1737601871876,-973.45,0.00021917,2]
[350081262,1737601871886,-2094.7,0.00021917,2]
[350081263,1737601871896,-1583.2,0.00021917,2]
[350081264,1737601871907,-1014.5,0.00021917,2]
[350081265,1737601871915,-500.0,0.00021917,2]
[350081266,1737601871925,-740.05,0.00021917,2]
[350081267,1737601871934,-1008.54,0.00021917,2]
[350081268,1737601871943,-683.54,0.00021917,2]
[350081269,1737601871952,-1456.71,0.00021917,2]
[350081270,1737601871961,-1653.44,0.00021917,2]
[350081271,1737601871972,-947.44,0.00021917,2]
[350081272,1737601871982,-659.61,0.00021917,2]
[350081273,1737601871991,-500.0,0.00021917,2]
[350081274,1737601872001,-859.87,0.00021917,2]
[350081275,1737601872011,-500.0,0.00021917,2]
[350081276,1737601872022,-713.74,0.00021917,2]
[350081277,1737601872034,-880.08,0.00021917,2]
[350081278,1737601872053,-865.21,0.00021917,2]
[350081279,1737601872063,-525.51,0.00021917,2]
[350081280,1737601872072,-2205.73,0.00021917,2]
[350081281,1737601872082,-500.0,0.00021917,2]
[350081282,1737601872092,-500.0,0.00021917,2]
[350081283,1737601872102,-520.85,0.00021917,2]
[350081284,1737601872112,-500.0,0.00021917,2]
[350081285,1737601872121,-500.0,0.00021917,2]
[350081286,1737601872131,-1015.49,0.00021917,2]
[350081287,1737601872141,-1435.42,0.00021917,2]
[350081288,1737601872151,-671.32,0.00021917,2]
[350081289,1737601872160,-599.42,0.00021917,2]
[350081290,1737601872169,-843.22,0.00021917,2]
[350081291,1737601872179,-150.0,0.00021918,2]
[350081292,1737601872190,-250.0,0.00021921,2]
[350081293,1737601872200,-150.0,0.00021927,2]
[350081294,1737601872213,-150.0,0.00021928,4]
[350081295,1737601872234,-295.36994334,0.00021932,4]
[350081296,1737601872248,-151.67191347,0.00021932,4]
[350081297,1737601872258,-295.36994334,0.00021954,4]
[350081298,1737601872268,-151.67191347,0.00021954,4]
[350081299,1737601872277,-555.08,0.00021959,7]
[350081300,1737601872287,-555.08,0.00021959,7]
[350081301,1737601872297,-1000.0,0.00021969,2]
[350081302,1737601872306,-150.0,0.00021969,4]
[350081303,1737601872316,-295.36994334,0.00021977,4]
[350081304,1737601872326,-151.67191347,0.00021977,4]
[350081305,1737601872335,-279.4057834,0.00021985,2]
[350081306,1737601872345,-261.7608063,0.00021985,2]
[350081307,1737601872354,-244.1158293,0.00021985,2]
[350081308,1737601872365,-226.4708522,0.00021985,2]
[350081309,1737601872374,-208.8258752,0.00021985,2]
[350081310,1737601872383,-153.6887894,0.00021985,2]
[350081311,1737601872393,-153.6887894,0.00021985,2]
[350081312,1737601872402,-153.6887894,0.00021985,2]
[350081313,1737601872411,-153.6887894,0.00021985,2]
[350081314,1737601872421,-153.6887894,0.00021985,2]
[350081315,1737601872431,-297.0507604,0.0002199,2]
[350081316,1737601872440,-5050.0,0.0002199,32]
[350081317,1737601872449,-1670.978812,0.0002199,27]
[350081318,1737601872459,-376.31595301,0.0002199,2]
[350081319,1737601872469,-153.6887894,0.0002199,2]
[350081320,1737601872480,-150.0,0.00021991,2]
[350081321,1737601872489,-7035.21324927,0.00021995,4]
[350081322,1737601872499,-1000.0,0.00021999,2]
[350081323,1737601872508,-1001.4082,0.00021999,2]
[350081324,1737601872517,-117126.30987053,0.00021999,3]
[350081325,1737601872527,-295.36994334,0.00022,4]
[350081326,1737601872537,-151.67191347,0.00022,4]
[350081327,1737601872546,-282862.17087645,0.00022,2]
[350081328,1737601872564,-605.191,0.00022,2]
[350081329,1737601872575,-339.959,0.00022,2]
[350081330,1737601872590,-102227.49601959,0.00022,2]
[350081331,1737601873023,-79.68530203,0.000204,2]
[350081332,1737601873037,-1900.72527154,0.000204,2]
[350081333,1737601873048,-500.0,0.00020547,2]
[350081334,1737601873059,-500.0,0.00020821,2]
[350081335,1737601873069,-500.0,0.00021095,2]
[350081336,1737601873079,-500.0,0.00021369,2]
[350081337,1737601873089,-2063.25,0.00021643,2]
[350081338,1737601873099,-141.06083715,0.00021643,2]
[350081339,1737601873110,-358.93916285,0.00021643,2]
[350081340,1737601873121,-2063.25,0.00021917,2]
[350081341,1737601873131,-398.81083715,0.00022,2]
[350081342,1737601873147,-807.47027711,0.00022,2]
[350081343,1737601873158,-1024.73015713,0.00022,2]
[350081344,1737601897499,550.0,0.00015,2]
[350081345,1737601898631,430.0,0.00017,2]
[350081346,1737601898651,170.0,0.00017,2]
[350081347,1737601997487,2000.0,0.00022002,120]
[350081350,1737602596444,2000.0,0.00022003,120]
[350081351,1737602652109,426.9005435,0.00022005,120]
[350081352,1737602731120,-271.59029806,9e-05,2]
[350081353,1737602731141,-213.30658563,0.000108,2]
[350081354,1737602731164,-382.51540908,0.00012,2]
[350081359,1737602828097,-331.97257961,0.0001,2]
[350081360,1737602828118,-397.16270691,0.0001,2]
[350081361,1737602828138,-24.57033578,0.0001162,2]
[350081363,1737602844101,-164.87347073,0.0001162,2]
[350081364,1737602844123,-247.52333589,0.00011999,2]
[350081369,1737602923052,229.34395934,8e-05,2]
[350081370,1737602946130,-660.13685787,9.937e-05,2]
[350081371,1737602946150,-214.28264339,9.937e-05,2]
[350081372,1737602946170,-300.0,9.999e-05,2]
[350081373,1737602946189,-2694.01737587,0.0001,2]
[350081374,1737602946213,-2817.39775765,0.0001,2]
[350081375,1737602947148,-138641.2566,0.0001,2]
[350081376,1737602947180,-199488.15827101,0.0001,2]
[350081377,1737602949088,-28149.86657632,0.0001,2]
[350081378,1737602957138,-92686.77712,0.0001,2]
[350081379,1737602958118,-46118.57068,0.0001,2]
[350081380,1737602960072,-10793.16336,0.0001,2]
[350081381,1737602964447,-278430.95658,0.0001,2]
[350081398,1737603032222,-257.382125,9.999e-05,2]
[350081399,1737603032332,-42.617875,9.999e-05,2]
[350081400,1737603032341,-258227.02710896,0.0001,2]
[350081401,1737603032353,-106338.79348952,0.0001,2]
[350081402,1737603032366,-56885.24587509,0.0001,2]
[350081403,1737603032564,-1337049.99999998,0.0001,2]
[350081404,1737603032609,-5326.21183776,0.0001,2]
[350081417,1737603038119,-14258.90698865,0.0001,2]
[350081418,1737603038131,-1052.0,0.0001,2]
[350081419,1737603038144,-6635.32058757,0.0001,2]
[350081420,1737603038223,-698.27067637,0.0001,2]
[350081421,1737603038235,-484.99755518,0.0001,2]
[350081422,1737603038247,-17442.3155,0.0001,2]
[350081423,1737603038280,-1992.77234958,0.0001,2]
[350081434,1737603040203,-652.01062997,0.0001,2]
[350081435,1737603040370,-392.624,0.0001,2]
[350081436,1737603040382,-1172.92400026,0.0001,2]
[350081437,1737603040394,-514.3,0.0001,2]
[350081438,1737603040405,-2172.909795,0.0001,2]
[350081439,1737603040479,-8575.8276865,0.0001,2]
[350081449,1737603043325,-330.3931886,0.0001,2]
[350081450,1737603043355,-290.1721112,0.0001,2]
[350081451,1737603043383,-974697.82771784,0.0001,2]
[350081452,1737603043438,-1277.4000006,0.0001,2]
[350081465,1737603046092,-4836.62071588,0.0001,2]
[350081473,1737603046387,-387.82,0.0001,2]
[350081474,1737603046497,-45.82186735,0.0001,2]
[350081475,1737603046521,-30702.0,0.0001,2]
[350081476,1737603046533,-812.03790506,0.0001,2]
[350081477,1737603046544,-8173.42789918,0.0001,2]
[350081479,1737603193728,810.739509,0.00022003,120]
[350081480,1737603494821,-500.0,9.999e-05,2]
[350081481,1737603494843,-150.0,9.999e-05,2]
[350081482,1737603494864,-17651.0,0.0001,2]
[350081484,1737603932162,-449.42900333,8.564e-05,2]
[350081485,1737603944089,-1231.49099667,8.564e-05,2]
[350081486,1737603944110,-300.0,9.999e-05,2]
[350081487,1737603944130,-10971.81892952,0.0001,2]
[350081488,1737604026091,-1051.05990889,0.0001,2]
[350081489,1737604029100,-3273.20403157,0.0001,2]
[350081490,1737604030078,-517.04507428,0.0001,2]
[350081491,1737604038089,-5114.49184959,0.0001,2]
[350081492,1737604049104,-3664.64341166,0.0001,2]
[350081493,1737604149140,-300.0,9.999e-05,2]
[350081494,1737604149161,-1113.295142,0.0001,2]
[350081495,1737604153115,-6237.053592,0.0001,2]
[350081496,1737604162138,-1281.711032,0.0001,2]
[350081497,1737604164100,-2928.408168,0.0001,2]
[350081498,1737604164128,-32171.19158532,0.0001,2]
[350081499,1737604168123,-50305.32962,0.0001,2]
[350081500,1737604169388,-229661.432,0.0001,2]
[350081501,1737604171102,-4610.676854,0.0001,2]
[350081502,1737604171157,-27673.3625,0.0001,2]
[350081510,1737604232456,-363.36010393,0.0001,2]
[350081511,1737604232692,-57.44945268,0.0001,2]
[350081512,1737604232703,-8293.72,0.0001,2]
[350081596,1737604238262,-1399.46589341,0.0001,2]
[350081597,1737604238274,-3578.8673034,0.0001,2]
[350081598,1737604238323,-286.20483402,0.0001,2]
[350081602,1737604240547,-116.78443437,0.0001,2]
[350081604,1737604243503,-2527.0499996,0.0001,2]
[350081617,1737604246317,-787.9500505,0.0001,2]
[350081618,1737604246446,-867.24788604,0.0001,2]
[350081619,1737604246533,-35875.0,0.0001,2]
[350081620,1737604571496,200.0,0.00022,120]
[350081621,1737604578095,200.0,0.00022,120]
[350081623,1737605130391,-164.14,8.137e-05,2]
[350081624,1737605130411,-164.85,8.174e-05,2]
[350081625,1737605130432,-332.16709034,8.219e-05,2]
[350081626,1737605136083,-763.08840518,8.219e-05,2]
[350081627,1737605226079,-685.73450448,8.219e-05,2]
[350081628,1737605226100,-892.45006109,9.695e-05,2]
[350081629,1737605226121,-106.66551763,9.695e-05,2]
[350081630,1737605251123,-740.93791677,9.646e-05,2]
[350081633,1737605332324,164.98,7.776e-05,2]
[350081634,1737605348520,-588.204668,9.646e-05,2]
[350081635,1737605348554,-726.44448237,9.695e-05,2]
[350081636,1737605348580,-151.0,9.698e-05,2]
[350081637,1737605348602,-158.94173856,9.698e-05,2]
[350081638,1737605348625,-5035.57,9.708e-05,2]
[350081639,1737605348647,-914.17225847,9.708e-05,2]
[350081640,1737605348669,-345.98,9.713e-05,2]
[350081641,1737605348695,-164.98,9.72e-05,2]
[350081642,1737605348718,-250.0,9.733e-05,2]
[350081643,1737605348739,-237.37,9.742e-05,2]
[350081644,1737605348760,-300.0,9.744e-05,2]
[350081645,1737605348781,-1733.37,9.745e-05,2]
[350081646,1737605348803,-319.56,9.768e-05,2]
[350081647,1737605348824,-583.66,9.8e-05,2]
[350081648,1737605348846,-27401.9,9.808e-05,2]
[350081649,1737605348868,-2137.22,9.816e-05,2]
[350081650,1737605348892,-250.0,9.835e-05,2]
[350081651,1737605348914,-1000.0,9.836e-05,2]
[350081652,1737605348936,-4998.59,9.845e-05,2]
[350081653,1737605348960,-973.14,9.89e-05,2]
[350081654,1737605348982,-200.0,9.913e-05,2]
[350081655,1737605349002,-158.94173855,9.918e-05,2]
[350081656,1737605349026,-920.74,9.943e-05,2]
[350081657,1737605349047,-1500.0,9.948e-05,2]
[350081658,1737605349069,-545.83,9.96e-05,2]
[350081659,1737605349094,-150.0,9.96e-05,2]
[350081660,1737605349115,-23414.8913866,0.0001,2]
[350081661,1737605349136,-3000.0,0.0001,2]
[350081662,1737605349158,-158.94173855,0.00010037,2]
[350081663,1737605349179,-250.0,0.00010049,2]
[350081664,1737605349200,-238.23,0.00010049,2]
[350081665,1737605349221,-175.2,0.00010092,2]
[350081666,1737605349242,-808.53,0.0001011,2]
[350081667,1737605349265,-415.83,0.00010137,2]
[350081668,1737605349290,-173.98,0.00010137,2]
[350081669,1737605349311,-370.34559816,0.00010321,2]
[350081670,1737605349585,-171.2,0.00010325,2]
[350081671,1737605349607,-150.0,0.00010356,2]
[350081672,1737605349630,-1780.99,0.00010468,2]
[350081673,1737605349652,-370.34559816,0.0001059,2]
[350081674,1737605349675,-189.39,0.00010646,2]
[350081675,1737605349703,-420.0,0.00010719,2]
[350081676,1737605349726,-313.99,0.00010959,2]
[350081677,1737605349751,-1000.0,0.00011066,2]
[350081678,1737605349775,-920.74,0.00011185,2]
[350081679,1737605349797,-155.25,0.0001132,2]
[350081680,1737605349818,-155.25,0.00011323,2]
[350081681,1737605349839,-155.25,0.00011326,2]
[350081682,1737605349860,-155.25,0.00011329,2]
[350081683,1737605349881,-155.25,0.00011332,2]
[350081684,1737605349902,-155.25,0.00011335,2]
[350081685,1737605349922,-155.25,0.00011338,2]
[350081686,1737605349943,-155.25,0.00011342,2]
[350081687,1737605349965,-155.25,0.00011345,2]
[350081688,1737605349987,-155.25,0.00011348,2]
[350081689,1737605350010,-155.25,0.00011351,2]
[350081690,1737605350034,-155.25,0.00011354,2]
[350081691,1737605350058,-155.25,0.00011357,2]
[350081692,1737605350078,-155.25,0.0001136,2]
[350081693,1737605350099,-155.25,0.00011364,2]
[350081694,1737605350120,-155.25,0.00011367,2]
[350081695,1737605350144,-155.25,0.0001137,2]
[350081696,1737605350166,-155.25,0.00011373,2]
[350081697,1737605350186,-155.25,0.00011376,2]
[350081698,1737605350207,-164.98,0.00011665,2]
[350081699,1737605350231,-587.0,0.0001179,2]
[350081700,1737605350252,-17638.0,0.00011863,2]
[350081701,1737605350274,-14997.0,0.0001188,2]
[350081702,1737605350295,-203.93000892,0.000119,2]
[350081703,1737605350318,-7523.78632179,0.000119,2]
[350081704,1737605350340,-1628.10324871,0.000119,2]
[350081705,1737605350362,-384.62687421,0.000119,2]
[350081706,1737605350387,-71209.46513895,0.00012,2]
[350081707,1737605356095,-553.4677106,0.00012,2]
[350081708,1737605365237,-46118.34822,0.00012,2]
[350081709,1737605365266,-143118.9648,0.00012,2]
[350081710,1737605366161,-6711.441016,0.00012,2]
[350081711,1737605369075,-35102.14444767,0.00012,2]
[350081712,1737605373138,-63664.79230493,0.00012,2]
[350081713,1737605374487,-276903.704,0.00012,2]
[350081716,1737605431486,-300.0,0.00011999,2]
[350081717,1737605431497,-31402.34650441,0.00012,2]
[350081718,1737605431589,-772.1419729,0.00012,2]
[350081719,1737605431852,-256.0558,0.00012,2]
[350081740,1737605437394,-992.52426896,0.00012,2]
[350081741,1737605437531,-6454.39999998,0.00012,2]
[350081746,1737605437867,-28428.23734126,0.00012,2]
[350081770,1737605442494,-5206.6555243,0.00012,2]
[350081771,1737605442666,-65.22716698,0.00012,2]
[350081783,1737605445575,-1023.05,0.00012,2]
[350081784,1737605445643,-7.46391745,0.00012,2]
[350081792,1737605848812,-431.46,0.00010137,2]
[350081793,1737605848836,-500.0,0.00011452,2]
[350081794,1737605848861,-34620.0,0.00011644,2]
[350081795,1737605848887,-6771.40768962,0.000119,2]
[350081796,1737605848911,-1465.29292383,0.000119,2]
[350081797,1737605848935,-191.61658947,0.000119,2]
[350081798,1737605849157,-500.87571151,0.00011973,2]
[350081799,1737605849182,-151.04794826,0.00011973,2]
[350081800,1737605849207,-500.72027652,0.00011973,2]
[350081801,1737605849233,-153.05144109,0.00011973,2]
[350081802,1737605849257,-501.39060582,0.00011973,2]
[350081803,1737605849281,-169.95205696,0.00011973,2]
[350081804,1737605849304,-161.07959352,0.00011973,2]
[350081805,1737605849328,-472.42286476,0.00011973,2]
[350081806,1737605849352,-152.30305061,0.00011973,2]
[350081807,1737605849376,-1674.02308124,0.00011999,2]
[350081808,1737605849400,-871754.73855767,0.00012,2]
[350081809,1737605849425,-91605.62915501,0.00012,2]
[350081810,1737605849449,-350.46682752,0.00012,2]
[350081811,1737605849475,-3000.0,0.00012,2]
[350081812,1737605897350,3000.0,0.00012,2]
[350081813,1737605940158,3000.0,0.00012,2]
[350081814,1737605995309,3000.0,0.00012,2]
[350081815,1737606038095,3000.0,0.00012,2]
[350081816,1737606040981,150.0,0.00012,2]
[350081817,1737606080869,3000.0,0.00012,2]
[350081818,1737606123677,3000.0,0.00012,2]
[350081819,1737606166449,3000.0,0.00012,2]
[350081820,1737606209249,3000.0,0.00012,2]
[350081821,1737606252048,3000.0,0.00012,2]
[350081822,1737606294931,3000.0,0.00012,2]
[350081823,1737606308097,964629.83877944,0.00012,2]
[350081824,1737606319652,6579.70236244,9e-05,2]
[350081825,1737606329458,5586.20395626,0.00011,2]
[350081826,1737606336146,-151.0,0.00012122,2]
[350081827,1737606336167,-199.35,0.00012329,2]
[350081828,1737606336190,-885.11903708,0.00012428,2]
[350081829,1737606336308,32724.83228394,8e-05,2]
[350081830,1737606337699,2826.32113,0.00012,2]
[350081832,1737606352090,-35.62096292,0.00012428,2]
[350081833,1737606352110,-272.0,0.00012438,2]
[350081834,1737606352133,-1715.22,0.00013326,2]
[350081835,1737606352152,-509.0,0.0001337,2]
[350081836,1737606352174,-920.74,0.00013671,2]
[350081837,1737606352193,-6895.66609591,0.00013699,2]
[350081838,1737606354862,24902.05061806,6.94e-05,2]
[350081840,1737606359859,1000.0,0.00022005,120]
[350081841,1737606362744,12737.78047034,0.0001,2]
[350081842,1737606366734,9013.75938798,8e-05,2]
[350081843,1737606376855,1038.14387193,0.00022,120]
[350081844,1737606430092,-300.0,0.00013698,2]
[350081845,1737606430112,-4966.75856269,0.00013699,2]
[350081846,1737606435122,-1889.96164507,0.00013699,2]
[350081847,1737606440103,-526.85168954,0.00013699,2]
[350081848,1737606477181,672.12234361,0.0001,2]
[350081849,1737606480781,877451.56339712,0.0001,2]
[350081851,1737606507302,374.94630429,7.888e-05,2]
[350081852,1737606513892,214.30622341,0.0001,2]
[350081853,1737606517182,2617.70673388,0.0001,2]
[350081856,1737606522268,6968.692632,8e-05,2]
[350081858,1737606523756,76256.28720038,8e-05,2]
[350081859,1737606523788,1000.0,9.132e-05,2]
[350081862,1737606555095,-150.50380062,0.00013041,5]
[350081863,1737606555118,-300.0,0.00013698,2]
[350081864,1737606555143,-2411.87529938,0.00013699,2]
[350081865,1737606556201,-8832.01670741,0.00013699,2]
[350081866,1737606556222,-2307.76659954,0.00013699,2]
[350081867,1737606556243,-2500.0,0.00013699,2]
[350081868,1737606556265,-151.0,0.00014547,2]
[350081869,1737606556289,-200.0,0.00014753,2]
[350081870,1737606556315,-1098.2877471,0.000149,2]
[350081871,1737606556337,-436.19463243,0.00015,2]
[350081872,1737606557072,-113.80536757,0.00015,2]
[350081873,1737606557094,-248.10706443,0.00015011,2]
[350081874,1737606567092,-171.89293557,0.00015011,2]
[350081875,1737606567118,-581.69,0.00015066,2]
[350081876,1737606567139,-1059.20581669,0.00015069,2]
[350081877,1737606567161,-2797.89202174,0.00015135,2]
[350081878,1737606571141,-21102.10797826,0.00015135,2]
[350081879,1737606571163,-1000.0,0.00015137,2]
[350081880,1737606571370,-26399.18,0.00015153,2]
[350081881,1737606571394,-250.0,0.00015153,2]
[350081882,1737606571414,-171.2,0.00015336,2]
[350081883,1737606571435,-500.0,0.00015336,2]
[350081884,1737606571456,-503.14,0.00015438,2]
[350081885,1737606571477,-1715.22,0.0001559,2]
[350081886,1737606571497,-581.69,0.0001582,2]
[350081887,1737606571518,-175.56,0.00015975,2]
[350081888,1737606571537,-959.73823533,0.00016,2]
[350081889,1737606571557,-250.0,0.00016015,2]
[350081890,1737606571578,-1124.2,0.00016055,2]
[350081891,1737606571600,-199.35,0.00016096,2]
[350081892,1737606571622,-250.0,0.00016208,2]
[350081893,1737606571644,-184.14,0.00016224,2]
[350081894,1737606571666,-1500.0,0.00016238,2]
[350081895,1737606571686,-682.94,0.00016364,2]
[350081896,1737606571708,-180.31712557,0.00016438,2]
[350081897,1737606571730,-587.0,0.00016451,2]
[350081898,1737606571752,-581.69,0.00016573,2]
[350081899,1737606571773,-222.91,0.00016658,30]
[350081900,1737606571794,-198.11,0.00016712,2]
[350081901,1737606571816,-124.09698813,0.00016813,2]
[350081902,1737606572316,-49.88301187,0.00016813,2]
[350081903,1737606572338,-326.76883573,0.00016813,2]
[350081904,1737606573103,-104.69116427,0.00016813,2]
[350081905,1737606573126,-246.8112619,0.000169,2]
[350081906,1737606573148,-600.0,0.00017,2]
[350081907,1737606573170,-1000.0,0.00017029,2]
[350081908,1737606573191,-1990.15273128,0.00017029,2]
[350081916,1737606631829,-300.0,0.00017028,2]
[350081917,1737606631839,-1864.0,0.00017029,2]
[350081918,1737606631853,-387.645,0.00017029,2]
[350081919,1737606632160,-103.62261,0.00017029,2]
[350081920,1737606632170,-33916.88180474,0.00017029,2]
[350081921,1737606632270,-1094.13301427,0.00017029,2]
[350081922,1737606632283,-1555.48465078,0.00017029,2]
[350081923,1737606632333,-282.5000005,0.00017029,2]
[350081924,1737606632346,-1860.00422993,0.00017029,2]
[350081925,1737606632451,-5100.0,0.00017029,2]
[350081926,1737606632463,-1955.82951647,0.00017029,2]
[350081938,1737606637573,-35697.28320421,0.00017029,2]
[350081939,1737606637583,-639.93,0.0001725,2]
[350081940,1737606637593,-438.64,0.0001725,2]
[350081941,1737606637605,-773.39,0.0001725,2]
[350081942,1737606637615,-773.39,0.0001725,2]
[350081943,1737606637625,-773.39,0.0001725,2]
[350081944,1737606637635,-773.39,0.0001725,2]
[350081945,1737606637644,-773.39,0.0001725,2]
[350081946,1737606637654,-232.67,0.00017272,2]
[350081947,1737606637664,-175.56,0.00017294,2]
[350081948,1737606637678,-503.14,0.00017367,2]
[350081949,1737606637687,-240.26,0.0001737,2]
[350081950,1737606637696,-1000.0,0.00017404,2]
[350081951,1737606637706,-773.39,0.00017534,2]
[350081952,1737606637715,-438.64,0.00017534,2]
[350081953,1737606637724,-438.64,0.00017534,2]
[350081954,1737606637733,-438.64,0.00017534,2]
[350081955,1737606637743,-438.64,0.00017534,2]
[350081956,1737606637756,-438.64,0.00017534,2]
[350081957,1737606637765,-438.64,0.00017534,2]
[350081958,1737606637774,-438.64,0.00017534,2]
[350081959,1737606637783,-438.64,0.00017534,2]
[350081960,1737606637793,-438.64,0.00017534,2]
[350081961,1737606637802,-436.88,0.00017534,2]
[350081962,1737606637811,-166.66,0.00017634,2]
[350081963,1737606637821,-2191.61118422,0.000178,2]
[350081964,1737606637830,-1715.22,0.00017854,2]
[350081965,1737606637839,-238.58421974,0.000179,2]
[350081966,1737606637849,-598.22040524,0.00018,3]
[350081967,1737606637862,-1135.03853704,0.00018,2]
[350081968,1737606637872,-306.27946759,0.00018,2]
[350081969,1737606637882,-155.0,0.00018,2]
[350081970,1737606637891,-1589.53420899,0.00018,3]
[350081971,1737606637900,-238.58421968,0.00018038,2]
[350081972,1737606637910,-2500.0,0.00018064,2]
[350081973,1737606637919,-700.17,0.00018082,2]
[350081974,1737606637928,-200.0,0.00018082,2]
[350081975,1737606637937,-391.55014721,0.000181,2]
[350081976,1737606637947,-1000.0,0.00018109,2]
[350081977,1737606637956,-232.67,0.00018135,2]
[350081978,1737606637965,-500.0,0.00018164,2]
[350081979,1737606637974,-238.58421968,0.00018176,2]
[350081980,1737606637985,-1941.94,0.00018192,14]
[350081981,1737606637997,-554.38,0.00018209,2]
[350081982,1737606638008,-314.38583634,0.00018209,2]
[350081983,1737606638028,-459.00416366,0.00018209,2]
[350081984,1737606638038,-773.39,0.00018209,2]
[350081985,1737606638047,-438.64,0.00018209,2]
[350081986,1737606638056,-773.39,0.00018209,2]
[350081987,1737606638065,-438.64,0.00018209,2]
[350081988,1737606638074,-438.64,0.00018209,2]
[350081989,1737606638084,-438.64,0.00018209,2]
[350081990,1737606638094,-773.39,0.00018209,2]
[350081991,1737606638106,-438.64,0.00018209,2]
[350081992,1737606638120,-773.39,0.00018209,2]
[350081993,1737606638129,-438.64,0.00018209,2]
[350081994,1737606638138,-773.39,0.00018209,2]
[350081995,1737606638148,-773.39,0.00018209,2]
[350081996,1737606638159,-438.64,0.00018209,2]
[350081997,1737606638168,-1394.73,0.00018209,2]
[350081998,1737606638178,-184.14,0.00018252,2]
[350081999,1737606638188,-238.58421968,0.00018314,2]
[350082000,1737606638198,-1673.304,0.00018321,2]
[350082002,1737606638207,-298.1,0.00018356,2]
[350082004,1737606638216,-881.9,0.00018356,2]
[350082006,1737606638226,-301.88,0.00018356,2]
[350082008,1737606638235,-300.0,0.00018356,2]
[350082010,1737606638244,-982.28,0.00018356,2]
[350082012,1737606638254,-150.0,0.00018356,2]
[350082014,1737606638264,-150.0,0.00018356,2]
[350082016,1737606638273,-150.0,0.00018356,2]
[350082018,1737606638282,-238.58421968,0.00018452,2]
[350082020,1737606638291,-438.64,0.00018493,2]
[350082021,1737606638302,-238.58421968,0.0001859,2]
[350082022,1737606638312,-420.0,0.00018598,2]
[350082023,1737606638323,-166.66,0.00018604,2]
[350082024,1737606638333,-175.56,0.00018612,2]
[350082025,1737606638342,-150.0,0.0001862,2]
[350082026,1737606638357,-298.1,0.0001862,2]
[350082027,1737606638367,-982.28,0.0001862,2]
[350082028,1737606638377,-298.1,0.0001862,2]
[350082029,1737606638387,-339.98,0.0001862,2]
[350082030,1737606638396,-298.1,0.0001862,2]
[350082031,1737606638406,-298.1,0.0001862,2]
[350082032,1737606638415,-153.38,0.0001862,2]
[350082033,1737606638423,-298.1,0.0001862,2]
[350082034,1737606638433,-596.1,0.0001862,2]
[350082035,1737606638442,-6801.829,0.000187,2]
[350082036,1737606638451,-15692.3825,0.000187,2]
[350082037,1737606638461,-8250.97767726,0.000187,2]
[350082038,1737606638473,-14111.77431537,0.000187,2]
[350082039,1737606638485,-1018.5,0.000187,2]